bitfinex/quotes_ETHUSD_20250924
["timestamp","ask_amount","ask_price","bid_price","bid_amount"]
[1758677021639,1e-08,4197.4,4197.3,23.30932157]
[1758677021834,1e-08,4197.4,4197.3,29.60946611]
[1758677023230,1e-08,4197.4,4197.3,29.72786611]
[1758677028557,1e-08,4197.4,4197.3,20.11622157]
[1758677028710,1e-08,4197.4,4197.3,29.72486611]
[1758677030132,1e-08,4197.4,4197.3,29.05236611]
[1758677030726,1e-08,4197.4,4197.3,29.72486611]
[1758677032959,1e-08,4197.4,4197.3,29.05236611]
[1758677034049,1e-08,4197.4,4197.3,23.42472157]
[1758677036363,1e-08,4197.4,4197.3,23.42872157]
[1758677037231,1e-08,4197.4,4197.3,24.10122157]
[1758677045173,1e-08,4197.4,4197.3,23.98282157]
[1758677055159,1e-08,4197.4,4197.3,24.10122157]
[1758677064222,0.0496,4198.7,4197.3,24.10122157]
[1758677064223,0.37463746,4198.8,4198.7,2.38168957]
[1758677064398,0.73184234,4198.8,4198.7,2.38168957]
[1758677064599,0.78144234,4198.8,4198.7,2.38168957]
[1758677064921,0.78144234,4198.8,4198.7,16.88168957]
[1758677071621,0.78144234,4198.8,4198.7,14.5]
[1758677072190,0.93709568,4198.8,4198.7,14.5]
[1758677073026,0.93809568,4198.8,4198.7,14.5]
[1758677073504,3.93809568,4198.8,4198.7,14.5]
[1758677073705,0.93809568,4198.8,4198.7,14.5]
[1758677074887,3.31972852,4198.8,4198.7,14.5]
[1758677075116,3.93809568,4198.8,4198.7,14.5]
[1758677075723,0.93809568,4198.8,4198.7,14.5]
[1758677076027,4.45314755,4198.8,4198.7,14.5]
[1758677077025,3.1184,4198.7,4198.0,0.1184]
[1758677077223,1.11635964,4198.6,4198.0,0.1184]
[1758677077397,0.35720488,4198.5,4198.0,2.50047613]
[1758677077727,0.35720488,4198.4,4198.1,14.5]
[1758677078033,0.35720488,4198.3,4198.1,16.8820196]
[1758677078230,0.13395183,4198.2,4198.1,14.5]
[1758677078399,0.13395183,4198.2,4198.1,16.88202996]
[1758677078915,0.3585014,4198.2,4198.1,14.5]
[1758677079115,0.4081014,4198.2,4198.1,14.5]
[1758677079320,0.7817345,4198.2,4198.1,14.5]
[1758677079729,0.92324819,4198.2,4198.1,14.5]
[1758677080336,0.92324819,4198.2,4197.3,0.004]
[1758677080534,3.4769014,4198.1,4197.4,6.36140997]
[1758677080746,0.3585014,4198.0,4197.5,16.88236125]
[1758677081042,0.3575014,4197.9,4197.6,2.38227995]
[1758677081196,0.3575014,4197.8,4197.6,2.38227995]
[1758677081397,0.3575014,4197.7,4197.5,2.38234955]
[1758677081596,0.13395183,4197.6,4197.5,2.38234955]
[1758677082345,0.13395183,4197.6,4197.5,16.88234955]
[1758677082503,0.13395183,4197.6,4197.5,14.5]
[1758677083046,0.13395183,4197.6,4197.5,16.88237045]
[1758677083459,0.13395183,4197.6,4197.5,14.5]
[1758677083628,0.13395183,4197.6,4197.5,16.88237045]
[1758677084461,0.0506,4197.9,4197.5,16.88237045]
[1758677084762,0.40780144,4197.8,4197.5,14.5]
[1758677084921,0.47560144,4197.7,4197.5,14.5]
[1758677085121,0.13395054,4197.6,4197.5,14.5]
[1758677086738,0.13395054,4197.6,4197.5,16.88237045]
[1758677088056,0.13395054,4197.6,4197.5,14.5]
[1758677089056,0.13395054,4197.6,4197.5,16.88237045]
[1758677089256,0.13395054,4197.6,4197.5,14.5]
[1758677089563,0.1184,4197.7,4197.5,16.88237045]
[1758677089763,0.1184,4197.7,4197.5,14.5]
[1758677089925,1.10508596,4197.6,4197.5,14.5]
[1758677090327,1.10408596,4197.6,4197.5,14.5]
[1758677090558,1.10408596,4197.6,4197.3,0.004]
[1758677090559,4.15468596,4197.6,4197.3,0.004]
[1758677090759,0.35787792,4197.5,4197.3,0.004]
[1758677090964,0.35687792,4197.4,4197.3,0.004]
[1758677091127,1.01057426,4197.4,4197.3,0.004]
[1758677092562,0.35687792,4197.4,4197.3,0.004]
[1758677092766,4.33687792,4197.4,4197.3,0.004]
[1758677093164,4.33687792,4197.4,4197.3,2.82678397]
[1758677093364,4.11382771,4197.4,4197.3,0.6906]
[1758677093645,3.13382771,4197.4,4197.3,0.6906]
[1758677093834,3.13382771,4197.4,4197.3,0.004]
[1758677094052,3.5075404,4197.4,4197.3,0.004]
[1758677094242,4.33101524,4197.4,4197.3,0.004]
[1758677094639,4.55385172,4197.4,4197.3,0.004]
[1758677097672,4.33101524,4197.4,4197.3,0.004]
[1758677100490,4.5538918,4197.4,4197.3,2.38648397]
[1758677100877,3.5075404,4197.4,4197.3,3.07308397]
[1758677101080,3.37371269,4197.4,4197.3,3.07308397]
[1758677103196,3.37371269,4197.4,4197.3,17.57308397]
[1758677103699,3.37371269,4197.4,4197.3,15.1906]
[1758677103895,3.50751901,4197.4,4197.3,14.504]
[1758677104264,3.73057317,4197.4,4197.3,16.88648397]
[1758677104905,3.50751901,4197.4,4197.3,16.88648397]
[1758677105295,3.50751901,4197.4,4197.3,17.57308397]
[1758677106288,3.73067611,4197.4,4197.3,17.57308397]
[1758677107903,3.35696342,4197.4,4197.3,17.57308397]
[1758677113616,3.35696342,4197.4,4197.3,16.88648397]
[1758677114423,3.35696342,4197.4,4197.3,17.13258397]
[1758677114623,3.35696342,4197.4,4197.3,17.60138397]
[1758677117681,3.35770654,4197.4,4197.3,17.60138397]
[1758677118421,3.20026153,4197.4,4197.3,17.60138397]
[1758677118822,3.20026153,4197.4,4197.3,21.58038397]
[1758677118980,3.20026153,4197.4,4197.3,23.9770819]
[1758677124051,2.97669494,4197.4,4197.3,23.9770819]
[1758677126497,2.97669494,4197.4,4197.3,21.58038397]
[1758677128696,0.13413995,4197.4,4197.3,21.58038397]
[1758677134293,0.13413995,4197.4,4197.3,20.86548397]
[1758677134478,3.0,4197.6,4197.3,20.86548397]
[1758677134479,3.0,4197.6,4197.5,2.38237045]
[1758677134680,3.35770005,4197.6,4197.5,2.38237045]
[1758677134878,3.35770005,4197.6,4197.5,3.09727045]
[1758677135088,3.35770005,4197.6,4197.5,17.59727045]
[1758677136561,0.35770005,4197.6,4197.5,17.59727045]
[1758677138984,0.35770005,4197.6,4197.5,21.57527045]
[1758677142321,0.35770005,4197.6,4197.5,21.54267045]
[1758677143354,0.35770005,4197.6,4197.5,20.86037045]
[1758677146274,0.35870005,4197.6,4197.5,20.86037045]
[1758677150751,0.35870005,4197.6,4197.5,21.52917045]
[1758677151158,0.35878072,4197.6,4197.5,21.52917045]
[1758677152995,0.35878072,4197.6,4197.5,22.24572269]
[1758677159186,0.35878072,4197.6,4197.5,21.57692269]
[1758677159505,0.35892301,4197.6,4197.5,22.24572269]
[1758677165818,0.001,4197.9,4197.8,2.3822002]
[1758677166114,0.001,4197.9,4197.8,7.0508222]
[1758677166284,0.001,4197.9,4197.8,7.0270002]
[1758677166491,0.001,4197.9,4197.8,21.5270002]
[1758677166816,0.001,4197.9,4197.8,23.37128744]
[1758677175836,0.001,4197.9,4197.8,23.48968744]
[1758677177325,0.001,4197.9,4197.8,22.82088744]
[1758677177630,0.001,4197.9,4197.8,23.50588744]
[1758677185641,0.001,4197.9,4197.8,23.26108744]
[1758677185800,0.001,4197.9,4197.8,22.82088744]
[1758677186002,0.001,4197.9,4197.8,23.06568744]
[1758677186314,0.001,4197.9,4197.8,23.50588744]
[1758677189225,0.001,4197.9,4197.8,22.82088744]
[1758677189740,0.001,4197.9,4197.8,18.84488744]
[1758677190043,0.0516,4197.9,4197.8,16.8822002]
[1758677190339,0.0516,4197.9,4197.8,20.8562002]
[1758677192143,0.002,4197.9,4197.8,20.8562002]
[1758677192843,0.0516,4197.9,4197.8,18.474]
[1758677193028,0.0516,4197.9,4197.8,20.8562002]
[1758677194043,0.0516,4197.9,4197.8,16.8822002]
[1758677194809,0.1855932,4197.9,4197.8,16.8822002]
[1758677195052,0.1855932,4197.9,4197.3,0.004]
[1758677195348,0.1349932,4197.8,4197.6,2.38230644]
[1758677195514,0.69332905,4197.9,4197.7,2.38225695]
[1758677195858,0.1340017,4197.8,4197.7,2.38225695]
[1758677196068,0.1340017,4197.8,4197.6,2.38229717]
[1758677196222,0.1846017,4197.7,4197.6,2.38229717]
[1758677199657,0.1846017,4197.7,4197.3,4.47106973]
[1758677199840,0.1350017,4197.6,4197.3,4.47106973]
[1758677200041,0.0506,4197.6,4197.5,2.38237045]
[1758677200235,0.18446537,4197.6,4197.5,2.38237045]
[1758677200441,0.0506,4197.6,4197.5,16.88237045]
[1758677200841,0.001,4197.6,4197.5,16.88237045]
[1758677201242,0.1184,4197.7,4197.6,2.3823137]
[1758677201566,0.25220884,4197.7,4197.6,2.3823137]
[1758677201766,0.25320884,4197.7,4197.6,2.3823137]
[1758677202584,0.25220884,4197.7,4197.5,16.88235422]
[1758677202741,0.0506,4197.6,4197.5,16.88235422]
[1758677204286,0.0506,4197.6,4197.5,14.5]
[1758677204590,0.73958041,4197.6,4197.5,14.5]
[1758677205946,3.0,4197.5,4197.3,0.004]
[1758677206151,0.13376307,4197.4,4197.3,0.004]
[1758677206454,0.13476307,4197.4,4197.3,0.004]
[1758677206648,1.4119929,4197.4,4197.3,0.004]
[1758677207112,1.78569992,4197.4,4197.3,0.004]
[1758677208143,2.57769992,4197.4,4197.3,0.004]
[1758677210465,2.52709992,4197.4,4197.3,0.004]
[1758677213178,2.1533929,4197.4,4197.3,0.004]
[1758677213866,4.80720968,4197.4,4197.3,0.004]
[1758677214317,7.80720968,4197.4,4197.3,0.004]
[1758677215036,15.51054573,4197.4,4197.3,0.004]
[1758677215908,15.88431641,4197.4,4197.3,0.004]
[1758677218718,21.51257334,4197.4,4197.3,0.004]
[1758677219885,25.48657334,4197.4,4197.3,0.004]
[1758677220590,25.48654918,4197.4,4197.3,0.004]
[1758677223157,23.92480611,4197.4,4197.3,0.004]
[1758677223301,24.77939442,4197.4,4197.3,0.004]
[1758677223704,19.15113749,4197.4,4197.3,0.004]
[1758677224323,21.66313749,4197.4,4197.3,0.004]
[1758677224523,27.29139442,4197.4,4197.3,0.004]
[1758677225338,14.27194918,4197.4,4197.3,0.004]
[1758677225643,20.94978792,4197.4,4197.3,0.004]
[1758677228105,28.13978792,4197.4,4197.3,0.004]
[1758677230768,28.19038792,4197.4,4197.3,0.004]
[1758677231630,27.54854918,4197.4,4197.3,0.004]
[1758677232365,28.40313749,4197.4,4197.3,0.004]
[1758677232532,27.54854918,4197.4,4197.3,0.004]
[1758677232867,27.49794918,4197.4,4197.3,0.004]
[1758677233230,27.49894918,4197.4,4197.3,0.004]
[1758677233737,21.46194918,4197.4,4197.3,0.004]
[1758677233958,28.14121856,4197.4,4197.3,0.7003]
[1758677234263,21.46194918,4197.4,4197.3,0.7003]
[1758677234467,27.49894918,4197.4,4197.3,0.2518]
[1758677234768,12.65926504,4197.4,4197.3,0.004]
[1758677234970,10.49363521,4197.4,4197.3,0.7003]
[1758677235138,14.46863521,4197.4,4197.3,0.7003]
[1758677235337,18.26063521,4197.4,4197.3,0.7003]
[1758677235740,25.26063521,4197.4,4197.3,0.7003]
[1758677236066,25.26110905,4197.4,4197.3,0.7003]
[1758677236774,25.63739771,4197.4,4197.3,0.7003]
[1758677240647,19.60039771,4197.4,4197.3,3.08278397]
[1758677240848,17.918773,4197.4,4197.3,3.08278397]
[1758677241049,21.51900232,4197.4,4197.3,3.08278397]
[1758677242276,21.29773891,4197.4,4197.3,3.08278397]
[1758677242479,21.51908015,4197.4,4197.3,3.08278397]
[1758677243283,21.29773891,4197.4,4197.3,3.08278397]
[1758677244088,14.29773891,4197.4,4197.3,3.08278397]
[1758677244254,14.6714397,4197.4,4197.3,17.58278397]
[1758677244457,10.6974397,4197.4,4197.3,17.58278397]
[1758677244803,7.5998397,4197.4,4197.3,19.58011861]
[1758677246412,7.46610079,4197.4,4197.3,19.58011861]
[1758677247409,7.46610079,4197.4,4197.3,5.08011861]
[1758677247586,7.46610079,4197.4,4197.3,3.08278397]
[1758677247788,7.46610079,4197.4,4197.3,17.58278397]
[1758677248011,3.49210079,4197.4,4197.3,17.58278397]
[1758677248212,7.46610079,4197.4,4197.3,17.58278397]
[1758677258615,3.0,4197.4,4197.3,17.58278397]
[1758677259054,3.0,4197.4,4197.3,19.58011861]
[1758677262181,6.974,4197.6,4197.5,2.38237045]
[1758677262528,6.974,4197.6,4197.5,3.08837045]
[1758677264029,3.001,4197.6,4197.5,3.08837045]
[1758677265742,3.001,4197.6,4197.5,17.58837045]
[1758677265943,3.001,4197.6,4197.5,19.85963077]
[1758677268768,0.001,4197.6,4197.5,19.85963077]
[1758677269109,0.001,4197.6,4197.5,19.97803077]
[1758677269311,0.001,4197.6,4197.5,20.09643077]
[1758677270693,0.001,4197.6,4197.5,20.10043077]
[1758677273189,0.001,4197.6,4197.5,19.98203077]
[1758677275530,0.001,4197.6,4197.5,20.35667821]
[1758677285656,0.001,4197.6,4197.5,26.90432919]
[1758677286618,0.02,4198.9,4198.8,2.38163284]
[1758677286814,0.02,4198.9,4198.8,2.40544916]
[1758677287016,0.02,4198.9,4198.8,2.38163284]
[1758677289406,0.02,4198.9,4198.8,2.40544916]
[1758677289717,0.02,4198.9,4198.8,2.38163284]
[1758677289933,0.02,4198.9,4198.8,3.28791724]
[1758677291146,0.0706,4198.9,4198.8,2.38163284]
[1758677293258,0.0706,4198.9,4198.6,2.38170494]
[1758677293417,0.0506,4198.8,4198.5,2.38180302]
[1758677293618,0.02,4198.9,4198.7,2.38168957]
[1758677293834,0.02,4198.9,4198.8,2.40544916]
[1758677295741,0.02,4198.9,4198.8,2.84194916]
[1758677296368,0.02,4198.9,4198.8,2.40544916]
[1758677305282,0.02,4198.9,4198.8,2.38163284]
[1758677306084,0.021,4198.9,4198.8,2.38163284]
[1758677306491,0.021,4198.9,4198.6,4.0884]
[1758677306786,0.021,4198.9,4198.6,6.47013854]
[1758677307285,0.021,4198.9,4198.7,2.38168957]
[1758677307644,0.021,4198.9,4198.8,2.38163284]
[1758677307848,0.15502427,4198.9,4198.8,2.38163284]
[1758677309574,0.1550433,4198.9,4198.8,2.38163284]
[1758677319508,0.1550433,4198.9,4198.8,2.81813284]
[1758677319802,0.021,4198.9,4198.8,3.61813984]
[1758677320509,0.021,4198.9,4198.8,3.73653984]
[1758677321721,0.021,4198.9,4198.8,3.76035616]
[1758677322590,0.021,4198.9,4198.8,3.73653984]
[1758677334344,0.021,4198.9,4198.8,3.76035616]
[1758677334533,0.021,4198.9,4198.8,3.73653984]
[1758677335350,0.021,4198.9,4198.8,3.76035616]
[1758677335545,0.021,4198.9,4198.8,3.73653984]
[1758677336225,0.021,4198.9,4198.8,2.50003284]
[1758677336724,0.021,4198.9,4198.8,3.19103284]
[1758677338330,0.021,4198.9,4198.8,3.21484916]
[1758677338532,0.021,4198.9,4198.8,3.19103284]
[1758677342447,0.021,4198.9,4198.8,2.50003284]
[1758677344074,3.23816155,4199.5,4199.4,2.38129256]
[1758677344383,3.3509496,4199.5,4199.4,2.38129256]
[1758677344679,3.3509496,4199.5,4199.4,16.88129256]
[1758677344836,3.3509496,4199.5,4199.4,14.5]
[1758677345031,4.95113881,4199.5,4199.4,14.5]
[1758677346549,10.57177712,4199.5,4199.4,14.5]
[1758677347232,11.08695253,4199.5,4199.4,14.5]
[1758677351766,11.03635253,4199.5,4199.4,14.5]
[1758677353355,10.52117712,4199.5,4199.4,14.5]
[1758677353963,10.63957712,4199.5,4199.4,14.5]
[1758677357483,10.64057712,4199.5,4199.4,14.5]
[1758677358486,10.64059575,4199.5,4199.4,14.5]
[1758677359883,10.64059575,4199.5,4198.9,3.09786255]
[1758677360082,3.0,4199.3,4198.9,3.09786255]
[1758677360273,4.3179988,4199.2,4199.0,15.1764]
[1758677360473,0.13414471,4199.1,4199.0,16.88149261]
[1758677360884,0.13414471,4199.1,4199.0,14.5]
[1758677361059,0.13414471,4199.1,4199.0,15.1764]
[1758677361259,0.13414471,4199.1,4199.0,16.8815194]
[1758677361494,0.13414471,4199.1,4199.0,17.5579194]
[1758677362493,0.13414471,4199.1,4199.0,15.1764]
[1758677363357,0.13414471,4199.1,4199.0,14.5]
[1758677363795,0.35100612,4199.1,4199.0,14.5]
[1758677363967,4.09464673,4199.1,4199.0,14.5]
[1758677364297,4.14524673,4199.1,4199.0,14.5]
[1758677364608,4.09464673,4199.1,4199.0,14.5]
[1758677365148,3.35100612,4199.1,4199.0,14.5]
[1758677366504,3.35100612,4199.1,4199.0,17.5579194]
[1758677366505,4.31700612,4199.1,4199.0,17.5579194]
[1758677366877,4.10014471,4199.1,4199.0,17.5579194]
[1758677368277,3.13414471,4199.1,4199.0,17.5579194]
[1758677369631,3.13414471,4199.1,4199.0,3.0579194]
[1758677370134,3.13414471,4199.1,4199.0,17.5579194]
[1758677370705,0.13414471,4199.1,4199.0,17.5579194]
[1758677370904,3.13414471,4199.1,4199.0,17.5579194]
[1758677371636,0.13414471,4199.1,4199.0,17.5579194]
[1758677371839,3.13414471,4199.1,4199.0,17.5579194]
[1758677372341,0.13414471,4199.1,4199.0,17.5579194]
[1758677374806,0.13414471,4199.1,4199.0,14.5]
[1758677375442,0.13414471,4199.1,4199.0,16.8815194]
[1758677375637,0.13414471,4199.1,4199.0,16.8855194]
[1758677376548,0.13414471,4199.1,4199.0,17.1154194]
[1758677376853,0.13414471,4199.1,4199.0,17.5619194]
[1758677377353,0.13414471,4199.1,4199.0,15.1804]
[1758677377559,0.13414471,4199.1,4199.0,14.504]
[1758677377858,0.13414471,4199.1,4199.0,16.8855194]
[1758677379155,0.13414471,4199.1,4199.0,17.1154194]
[1758677379458,0.13414471,4199.1,4199.0,16.8855194]
[1758677381757,0.13414471,4199.1,4199.0,17.1299194]
[1758677381959,0.13414471,4199.1,4199.0,17.6014194]
[1758677382124,0.13414471,4199.1,4199.0,16.8855194]
[1758677382720,0.13414471,4199.1,4199.0,14.504]
[1758677382955,0.13414471,4199.1,4199.0,16.8855194]
[1758677383161,0.13414471,4199.1,4199.0,14.504]
[1758677383322,0.13411405,4199.1,4199.0,14.504]
[1758677384081,7.80912546,4199.1,4199.0,14.504]
[1758677384252,8.14329908,4199.1,4199.0,0.004]
[1758677384453,13.76393739,4199.1,4199.0,0.004]
[1758677385293,8.14329908,4199.1,4199.0,2.3855194]
[1758677385502,7.43328767,4199.1,4199.0,2.3855194]
[1758677385793,7.43328767,4199.1,4199.0,3.1014194]
[1758677386919,7.43328767,4199.1,4199.0,0.7199]
[1758677387190,7.43328767,4199.1,4199.0,0.004]
[1758677387594,14.35931858,4199.1,4199.0,0.004]
[1758677387800,14.40991858,4199.1,4199.0,0.004]
[1758677388155,14.35931858,4199.1,4199.0,0.004]
[1758677390859,14.36031858,4199.1,4199.0,0.004]
[1758677392077,14.73389132,4199.1,4199.0,0.004]
[1758677392776,14.73289132,4199.1,4199.0,0.004]
[1758677395779,9.11225301,4199.1,4199.0,0.004]
[1758677396176,3.84186041,4199.1,4199.0,0.004]
[1758677396394,7.80686041,4199.1,4199.0,0.004]
[1758677397613,3.84186041,4199.1,4199.0,2.3855194]
[1758677397796,7.09911405,4199.1,4199.0,3.1014194]
[1758677398197,7.09911405,4199.1,4199.0,17.6014194]
[1758677398401,3.13411405,4199.1,4199.0,17.6014194]
[1758677399634,3.13411405,4199.1,4199.0,15.2199]
[1758677399986,3.13411405,4199.1,4199.0,14.504]
[1758677400191,10.97390172,4199.1,4199.0,14.504]
[1758677401227,3.35044817,4199.1,4199.0,14.504]
[1758677401427,7.09911405,4199.1,4199.0,15.2199]
[1758677401728,3.13411405,4199.1,4199.0,17.6014194]
[1758677401893,7.09911405,4199.1,4199.0,17.6014194]
[1758677402990,3.13411405,4199.1,4199.0,17.6014194]
[1758677403590,0.13411405,4199.1,4199.0,17.6014194]
[1758677403786,0.13411405,4199.1,4199.0,19.99622381]
[1758677405549,0.001,4199.5,4199.4,2.38129256]
[1758677405846,7.31632026,4199.5,4199.4,2.38129256]
[1758677406136,3.13503645,4199.5,4199.4,17.59719256]
[1758677408160,3.13503645,4199.5,4199.4,14.5]
[1758677408457,4.07335804,4199.5,4199.4,14.5]
[1758677408612,4.07435804,4199.5,4199.4,14.5]
[1758677410019,4.58899483,4199.5,4199.4,14.5]
[1758677410921,6.96923069,4199.5,4199.4,14.5]
[1758677411121,5.43059483,4199.5,4199.0,0.004]
[1758677411325,9.54626295,4199.3,4199.0,0.004]
[1758677411523,6.17346269,4199.1,4199.0,0.004]
[1758677411829,7.03843052,4199.1,4199.0,0.004]
[1758677412027,7.08903052,4199.1,4199.0,0.004]
[1758677412323,9.44108237,4199.1,4199.0,0.004]
[1758677415615,10.08455652,4199.1,4199.0,0.004]
[1758677415816,10.29567068,4199.1,4199.0,0.004]
[1758677416012,9.44108237,4199.1,4199.0,0.004]
[1758677417136,10.29746,4199.1,4199.0,0.004]
[1758677417339,3.17374629,4198.6,4198.5,0.004]
[1758677417537,20.8696213,4198.6,4198.5,0.004]
[1758677417787,20.9202213,4198.6,4198.5,0.004]
[1758677418049,20.37350958,4198.6,4198.5,0.004]
[1758677418674,14.29790958,4198.6,4198.5,0.004]
[1758677418815,20.32390958,4198.6,4198.5,0.004]
[1758677419538,10.50834246,4198.6,4198.5,0.724]
[1758677419763,0.35027709,4198.6,4198.5,0.724]
[1758677419967,9.95203645,4198.6,4198.5,0.724]
[1758677420158,10.16827709,4198.6,4198.5,0.724]
[1758677420330,10.16827709,4198.6,4198.5,0.004]
[1758677420331,11.75802338,4198.6,4198.5,0.004]
[1758677420531,19.09628633,4198.6,4198.5,0.004]
[1758677420848,21.24407874,4198.6,4198.5,0.004]
[1758677421655,15.21807874,4198.6,4198.5,0.004]
[1758677421858,21.24407874,4198.6,4198.5,0.004]
[1758677422058,21.33962291,4198.6,4198.5,0.004]
[1758677422254,19.27862291,4198.6,4198.5,0.004]
[1758677422462,21.33962291,4198.6,4198.5,0.004]
[1758677424157,21.85259259,4198.6,4198.5,0.004]
[1758677424360,21.33962291,4198.6,4198.5,0.004]
[1758677425580,21.90309904,4198.6,4198.5,0.004]
[1758677426357,21.85249904,4198.6,4198.5,0.004]
[1758677428347,19.79149904,4198.6,4198.5,0.004]
[1758677428584,21.85349904,4198.6,4198.5,0.004]
[1758677429159,15.30723609,4198.6,4198.5,0.252]
[1758677429562,15.30723609,4198.6,4198.5,0.724]
[1758677429797,15.30723609,4198.6,4198.5,0.252]
[1758677429975,15.30723609,4198.6,4198.5,0.004]
[1758677430698,15.30723609,4198.6,4198.5,0.252]
[1758677431195,15.30723609,4198.6,4198.5,0.724]
[1758677431576,14.79435996,4198.6,4198.5,0.724]
[1758677432177,15.30701862,4198.6,4198.5,0.724]
[1758677432806,14.79435996,4198.6,4198.5,0.724]
[1758677433319,14.79435996,4198.6,4198.5,0.252]
[1758677433819,15.30707793,4198.6,4198.5,0.252]
[1758677434163,21.85334088,4198.6,4198.5,0.252]
[1758677434481,21.85334088,4198.6,4198.5,0.004]
[1758677436069,21.85378091,4198.6,4198.5,0.004]
[1758677436271,15.82678091,4198.6,4198.5,0.004]
[1758677436485,21.85378091,4198.6,4198.5,0.004]
[1758677436873,21.72018845,4198.6,4198.5,0.004]
[1758677437067,21.85382969,4198.6,4198.5,0.252]
[1758677437875,15.82682969,4198.6,4198.5,0.252]
[1758677438074,21.85382969,4198.6,4198.5,0.724]
[1758677439113,21.85382969,4198.6,4198.5,0.004]
[1758677441069,21.85382969,4198.6,4198.5,0.252]
[1758677441317,22.22748531,4198.6,4198.5,0.252]
[1758677441622,22.22748531,4198.6,4198.5,0.004]
[1758677441922,22.869353,4198.6,4198.5,0.004]
[1758677442288,22.22748531,4198.6,4198.5,0.004]
[1758677443676,22.22748531,4198.6,4198.5,0.2325]
[1758677444119,22.87088338,4198.6,4198.5,0.6948]
[1758677444323,22.22748531,4198.6,4198.5,0.6948]
[1758677444681,16.20048531,4198.6,4198.5,0.6948]
[1758677444883,29.22748531,4198.6,4198.5,0.004]
[1758677446181,29.22794919,4198.6,4198.5,0.004]
[1758677448277,30.08430866,4198.6,4198.5,0.004]
[1758677448524,29.27854919,4198.6,4198.5,0.004]
[1758677448726,28.90489357,4198.6,4198.5,0.004]
[1758677449023,29.76334286,4198.6,4198.5,0.004]
[1758677449243,29.71374286,4198.6,4198.5,0.004]
[1758677449698,28.90489357,4198.6,4198.5,0.004]
[1758677450219,30.18671644,4198.6,4198.5,0.004]
[1758677450407,28.90489357,4198.6,4198.5,0.004]
[1758677450730,3.17385975,4198.4,4198.3,0.004]
[1758677450929,13.14985094,4198.4,4198.3,0.004]
[1758677451131,13.20045094,4198.4,4198.3,0.004]
[1758677451347,14.48789987,4198.4,4198.3,0.004]
[1758677451847,14.86161402,4198.4,4198.3,0.004]
[1758677453004,14.48789987,4198.4,4198.3,0.004]
[1758677453309,14.43829987,4198.4,4198.3,0.004]
[1758677453509,22.25456282,4198.4,4198.3,0.004]
[1758677453846,21.76011389,4198.4,4198.3,0.004]
[1758677454004,23.09716282,4198.4,4198.3,0.004]
[1758677454558,21.80971389,4198.4,4198.3,0.004]
[1758677454845,22.1338285,4198.4,4198.3,0.004]
[1758677455045,16.1048285,4198.4,4198.3,0.004]
[1758677455255,22.1348285,4198.4,4198.3,0.004]
[1758677456236,22.1358285,4198.4,4198.3,0.004]
[1758677456811,29.1854285,4198.4,4198.3,0.004]
[1758677457010,30.47349958,4198.4,4198.3,0.004]
[1758677457225,29.18605065,4198.4,4198.3,0.004]
[1758677457627,29.13545065,4198.4,4198.3,0.004]
[1758677460866,23.10545065,4198.4,4198.3,0.2325]
[1758677461032,23.10545065,4198.4,4198.3,0.6948]
[1758677461033,28.76373604,4198.4,4198.3,0.6948]
[1758677461584,22.73173604,4198.4,4198.3,0.6948]
[1758677461880,28.76373604,4198.4,4198.3,0.6948]
[1758677462088,29.62112884,4198.4,4198.3,0.6948]
[1758677462535,28.70047819,4198.4,4198.3,0.6948]
[1758677463174,23.04216673,4198.4,4198.3,0.6948]
[1758677463379,29.07416673,4198.4,4198.3,0.6948]
[1758677464479,28.21677393,4198.4,4198.3,0.6948]
[1758677466978,22.18477393,4198.4,4198.3,0.6948]
[1758677467179,28.21677393,4198.4,4198.3,0.6948]
[1758677467684,28.21677393,4198.4,4198.3,0.004]
[1758677468746,28.26737393,4198.4,4198.3,0.004]
[1758677468947,28.26737393,4198.4,4197.9,0.004]
[1758677468948,6.1740867,4198.0,4197.9,0.004]
[1758677469166,6.1740867,4198.0,4197.8,0.004]
[1758677469167,11.91815575,4197.9,4197.8,0.004]
[1758677469477,20.83029417,4197.9,4197.8,0.004]
[1758677469772,19.97272565,4197.9,4197.8,0.004]
[1758677470518,19.97272565,4197.9,4197.5,0.004]
[1758677470519,6.17425695,4197.7,4197.5,0.004]
[1758677470721,11.00982685,4197.7,4197.5,0.004]
[1758677471512,2.38242721,4197.4,4197.1,0.024]
[1758677471729,25.1804634,4197.4,4197.1,0.024]
[1758677471923,6.17454074,4197.2,4197.1,0.024]
[1758677472211,11.01011064,4197.2,4197.1,0.024]
[1758677473910,6.1745975,4197.1,4197.0,0.004]
[1758677474110,12.6647797,4197.1,4197.0,0.004]
[1758677475211,12.6647797,4197.1,4196.6,0.004]
[1758677475212,0.792,4196.9,4196.6,0.004]
[1758677475406,11.92968961,4196.9,4196.6,0.004]
[1758677475795,11.93068961,4196.9,4196.6,0.004]
[1758677476098,12.30352091,4196.9,4196.6,0.004]
[1758677476297,19.49352091,4196.9,4196.6,0.004]
[1758677476529,19.49352091,4196.9,4196.2,0.004]
[1758677476530,6.17499494,4196.4,4196.2,0.004]
[1758677476739,13.71965647,4196.3,4196.2,0.004]
[1758677477032,13.71965647,4196.3,4196.2,0.2466]
[1758677477386,13.07762163,4196.3,4196.2,0.004]
[1758677479214,13.07816109,4196.3,4196.2,0.004]
[1758677479419,15.22520453,4196.3,4196.2,0.004]
[1758677479781,16.24066692,4196.3,4196.2,0.004]
[1758677480315,16.24066692,4196.3,4196.2,0.6846]
[1758677480316,12.42504341,4196.3,4196.2,0.6846]
[1758677480488,12.66540307,4196.3,4196.2,0.6846]
[1758677480691,5.03535134,4196.3,4196.2,0.6846]
[1758677480987,9.3962033,4196.3,4196.2,0.6846]
[1758677481188,12.57125503,4196.3,4196.2,0.6846]
[1758677481594,17.3782033,4196.3,4196.2,0.6846]
[1758677481992,19.76125503,4196.3,4196.2,0.6846]
[1758677483719,17.3782033,4196.3,4196.2,0.6846]
[1758677484020,17.3772033,4196.3,4196.2,0.6846]